Cogmind - Beta 11 X5 @@@ ROGUE MODE // 2021.07.03 @ 02:37:10 Player: JackNine Result: Destroyed by G-50 Soldier with Heavy Laser Performance ------------- Evolutions (4) 2000 Regions Visited (13) 2600 Robots Destroyed (173) 865 Value Destroyed (5828) 5828 Prototype IDs (18) 360 Alien Tech Used (0) 0 Bonus (2500) 2500 TOTAL SCORE: 14153 Bonus ------- High Alert Combat Kills 1052 Follower Combat Kills 1179 Met Imprinter 300 Friendly Fire -31 Cogmind --------- Core Integrity 0/850 Matter 177/300 Energy 135/135 System Corruption 9% Temperature Cool (38) Movement Walking (360) Ox3 Location -6/Cetus Parts ------- > --- POWER (1) -------- Compact Particle Reactor > --- PROPULSION (4) --- Carbon-fiber Leg > --- UTILITY (7) ------ High-capacity Storage Unit Melee Analysis Suite Melee Analysis Suite > --- WEAPON (3) ------- Ripper > --- INVENTORY (20) --- Heavy Deuterium Engine Thermal Defense Suite EM Shield Hacking Drone Bay (1/1) Cooled Particle Cannon Gauss Cannon Mace Power Maul Scythe Ripper Great Axe Phasing Sabre Peak State ------------ > --- POWER ------------ Compact Particle Reactor > --- PROPULSION ------- Carbon-fiber Leg Carbon-fiber Leg Carbon-fiber Leg Myomer Leg > --- UTILITY ---------- High-capacity Storage Unit Structural Scanner Improved Signal Interpreter Melee Analysis Suite Centrium Medium Armor Plating Thermal Defense Suite Force Field > --- WEAPON ----------- Ripper Great Axe Phasing Sabre > --- INVENTORY -------- Heavy Deuterium Engine Carbon-fiber Leg Carbon-fiber Leg Carbon-fiber Leg Improved Medium Armor Plating Improved Medium Armor Plating Medium Reflective Plating EM Shield Hacking Drone Bay Cooled Particle Cannon Gauss Cannon Heavy Missile Launcher Remote Datajack Mace Power Maul Scythe Ripper Ripper Great Axe Phasing Sabre [Rating: 75] Favorites ----------- Power Reinforced Deuterium Engine Engine Reinforced Deuterium Engine Power Core Light Nuclear Core Reactor Compact Particle Reactor Propulsion Compact Wheel Treads Light Treads Leg Flexi-carbon Leg Wheel Compact Wheel Utility High-capacity Storage Unit Device Actuator Array Storage High-capacity Storage Unit Processor Improved Signal Interpreter Hackware System Shield Protection Improved Medium Armor Plating Weapon Axe Energy Gun Spread Laser Energy Cannon Cooled Particle Cannon Ballistic Gun Enhanced Autogun Ballistic Cannon Gauss Cannon Launcher Heavy Missile Launcher Impact Weapon Power Maul Slashing Weapon Axe Build | -11 -10 -10 -10 -9 -8 -7 -7 -7 -7 -6 -6 -6 -6 ------- Run | Scr Mat Min Exi Min Mat Fac Low Low Zio Pro Fac Ext Cet Slots Evolved 8 | . . . . . 4 2 . . . . 2 . . Power . | . . . . . . . . . . . . . . Propulsion 2 | . . . . . 1 . . . . . 1 . . Utility 5 | . . . . . 2 2 . . . . 1 . . Weapon 1 | . . . . . 1 . . . . . . . . Parts Attached 275 | 6 14 4 . 3 54 18 22 17 2 8 67 45 15 Power 28 | 1 2 1 . 2 2 1 2 2 . . 10 5 . Engine 20 | 1 . 1 . 2 1 1 2 2 . . 8 2 . Core 5 | . 2 . . . 1 . . . . . 2 . . Reactor 3 | . . . . . . . . . . . . 3 . Propulsion 90 | 2 3 1 . . 16 6 9 5 . 2 26 16 4 Treads 25 | 1 1 . . . 5 2 6 4 . 2 4 . . Leg 34 | . . . . . . . . . . . 14 16 4 Wheel 31 | 1 2 1 . . 11 4 3 1 . . 8 . . Hover . | . . . . . . . . . . . . . . Flight . | . . . . . . . . . . . . . . Utility 86 | 1 4 . . 1 19 6 7 5 2 3 19 14 5 Device 43 | . 3 . . 1 6 2 5 2 2 2 11 9 . Storage 8 | 1 1 . . . 4 . . . . . 1 1 . Processor 8 | . . . . . 2 2 . . . . 2 1 1 Hackware 1 | . . . . . 1 . . . . . . . . Protection 26 | . . . . . 6 2 2 3 . 1 5 3 4 Artifact . | . . . . . . . . . . . . . . Weapon 71 | 2 5 2 . . 17 5 4 5 . 3 12 10 6 Energy Gun 13 | 2 3 1 . . 7 . . . . . . . . Energy Cannon 2 | . . . . . . . . . . . 1 1 . Ballistic Gun 4 | . 2 . . . 2 . . . . . . . . Ballistic Cannon 2 | . . . . . 1 . 1 . . . . . . Launcher 12 | . . 1 . . 1 2 1 1 . 2 . 1 3 Special Weapon . | . . . . . . . . . . . . . . Impact Weapon 4 | . . . . . 1 . . . . . 2 1 . Slashing Weapon 34 | . . . . . 5 3 2 4 . 1 9 7 3 Piercing Weapon . | . . . . . . . . . . . . . . Special Melee Weapon . | . . . . . . . . . . . . . . Unidentified Prototypes 13 | . . . . . 4 1 . . 1 . 4 2 1 Corrupted Parts 2 | . . . . . . . 1 . . . . 1 . System Corruption 8 | . . . . . . . 1 . . . . 7 . Parts Lost 82 | . 2 1 . . 4 4 7 11 . 5 23 8 17 Power 6 | . . 1 . . . . 1 . . . 3 1 . Propulsion 34 | . 1 . . . 3 3 3 4 . 2 10 2 6 Utility 25 | . . . . . . 1 2 4 . 3 6 3 6 Weapon 17 | . 1 . . . 1 . 1 3 . . 4 2 5 Highest Loss Streak 13 | . 2 1 . . 2 1 7 6 . 4 6 8 13 Average Slot Usage (%) 97 | . 97 100 100 99 98 99 98 98 100 98 92 98 94 Engine 6 | . 2 7 14 14 6 7 7 7 7 7 5 2 . Core 1 | . 11 6 . . 2 . . . . . . . . Treads 9 | . 14 14 14 14 8 7 13 14 15 20 4 . . Leg 5 | . . . . . . . . . . . 14 26 25 Wheel 8 | . 14 14 14 14 17 14 8 6 7 2 5 . . Device 14 | . 11 14 14 13 10 15 14 14 15 19 15 17 15 Storage 7 | . 14 14 14 14 9 7 7 7 7 7 6 6 6 Processor 11 | . . . . . 6 15 15 15 15 9 12 13 13 Protection 5 | . . . . . 8 7 6 7 7 7 3 7 7 Energy Gun 4 | . 25 28 28 28 7 . . . . . . . . Slashing Weapon 17 | . . . . . 16 22 22 22 23 19 18 18 16 Naked Turns . | . . . . . . . . . . . . . . Heaviest Build 87 | 13 33 32 32 36 71 72 79 80 77 77 82 87 85 Greatest Support 103 | 16 16 16 16 16 32 20 62 60 50 80 103 80 70 Greatest Overweight (x) 5 | . 3 3 1 2 3 3 5 4 1 4 3 1 2 Average Overweight (x) 1 | . 1 1 1 1 2 3 3 2 1 1 1 . . Largest Inventory Capacity 25 | 8 15 15 15 15 25 20 20 20 20 20 20 20 20 Average Capacity 19 | 6 14 15 15 15 18 20 20 20 20 20 20 20 20 Most Carried 20 | 4 15 15 14 15 20 20 20 20 19 20 20 20 20 Average Carried 17 | 2 13 14 14 14 18 19 17 14 16 18 18 19 19 Final Capacity 20 | 8 15 15 15 15 20 20 20 20 20 20 20 20 20 Final Carried 20 | 4 15 14 14 15 20 20 17 15 19 19 20 20 12 Class Distribution -------------------- 53% | Mutant 37% | Scavenger-Mutant 4% | Gunner 3% | Commander-Mutant Dominant Class ---------------- Mutant | -10/Materials Mutant | -10/Mines Mutant | -10/Exiles Mutant | -9/Mines Mutant | -8/Materials Mutant | -7/Factory Scavenger-Mutant | -7/Lower Caves Mutant | -7/Lower Caves Mutant | -7/Zion Scavenger-Mutant | -6/Proximity Caves Scavenger-Mutant | -6/Factory Scavenger-Mutant | -6/Extension Scavenger-Mutant | -6/Cetus Resources | -11 -10 -10 -10 -9 -8 -7 -7 -7 -7 -6 -6 -6 -6 ----------- Run | Scr Mat Min Exi Min Mat Fac Low Low Zio Pro Fac Ext Cet Matter Collected 3493 | 178 428 62 . 30 657 273 252 191 38 95 686 533 70 Remotely . | . . . . . . . . . . . . . . Salvage Created 7529 | . 583 69 . 51 1097 1227 681 406 . 511 2064 638 202 Parts 390 | . 41 13 . 2 77 60 28 16 . 23 89 33 8 Haulers Intercepted 6 | . . . . . 4 . . . . . 2 . . Recyclers Shooed 4 | . . 1 . . . 1 . . . . 2 . . Parts Field Recycled . | . . . . . . . . . . . . . . Retrieved Matter . | . . . . . . . . . . . . . . Parts Self-Destructed 55 | . . . . . . . 16 20 . 19 . . . Prevented 7 | . . . . . . . 7 . . . . . . Kills | -11 -10 -10 -10 -9 -8 -7 -7 -7 -7 -6 -6 -6 -6 ------- Run | Scr Mat Min Exi Min Mat Fac Low Low Zio Pro Fac Ext Cet Combat Hostiles Destroyed 129 | . 16 8 . . 25 18 12 6 . 16 17 7 4 Melee 69 | . . . . . 6 18 8 4 . 7 16 7 3 Guns 39 | . 16 6 . . 17 . . . . . . . . AOE 19 | . . 2 . . 2 . 3 2 . 9 . . 1 Classes Destroyed 15 | . 3 . . 1 6 2 2 1 . . . . . Worker 11 | . 1 . . . 4 3 . . . . 1 2 . Builder 7 | . . . . . 1 1 . . . . 3 2 . Tunneler 1 | . . . . . 1 . . . . . . . . Hauler 6 | . . . . . 4 . . . . . 2 . . Recycler 11 | . . . . 1 . 3 . . . . 6 1 . Watcher 8 | . . . . . 3 1 . . . . 1 2 1 Swarmer 40 | . 3 8 . . 10 3 3 3 . 9 . . 1 Grunt 48 | . 13 . . . 6 6 4 2 . 5 8 4 . Brawler 3 | . . . . . . . 3 . . . . . . Duelist 2 | . . . . . . 1 1 . . . . . . Sentry 15 | . . . . . 6 4 1 . . 1 1 2 . Hunter 10 | . . . . . 3 1 . . . . 6 . . Programmer 7 | . . . . . . 3 . . . 1 2 1 . Behemoth 1 | . . . . . . . . 1 . . . . . Cetus Guard 3 | . . . . . . . . . . . . . 3 Decomposer 1 | . . . . . . . 1 . . . . . . Packrat 1 | . . . . . . . . 1 . . . . . Samaritan 1 | . . . . . . . 1 . . . . . . Best Kill Streak 9 | . 5 3 . 1 5 9 5 3 . 4 5 5 2 Combat Bots Only 7 | . 5 3 . . 4 7 5 3 . 4 3 1 2 Max Kills in Single Turn 3 | . 2 2 . 1 3 1 1 1 . 3 1 3 1 Gunslinging 1 | . . . . . 1 . . . . . . . . Exploded 3 | . . 2 . . 2 . 1 1 . 3 . . 1 Melee 1 | . . . . . 1 1 1 1 . 1 1 1 1 Uniques/NPCs Destroyed . | . . . . . . . . . . . . . . Combat | -11 -10 -10 -10 -9 -8 -7 -7 -7 -7 -6 -6 -6 -6 -------- Run | Scr Mat Min Exi Min Mat Fac Low Low Zio Pro Fac Ext Cet Damage Taken 12190 | . 649 131 . 17 719 1039 808 1058 . 858 3077 1506 2328 Core 1649 | . 114 45 . . 40 126 118 219 . 130 392 91 374 Absorbed by Shields 878 | . . . . . . 32 70 249 . . 181 300 46 Core Remaining (%) 60 | 100 . . . 36 92 . . . . 15 . . . Volleys Fired 123 | . 47 10 . 2 29 3 9 2 . 9 . 6 6 Largest 3 | . 2 2 . 2 3 1 1 1 . 1 . 1 1 Hottest 195 | . 130 130 . 130 195 36 48 39 . 39 . 90 39 Shots Fired 232 | . 93 19 . 4 80 3 10 2 . 9 . 6 6 Gun 194 | . 93 18 . 4 79 . . . . . . . . Cannon 2 | . . . . . . . 1 . . . . 1 . Launcher 36 | . . 1 . . 1 3 9 2 . 9 . 5 6 Special . | . . . . . . . . . . . . . . Kinetic 55 | . 29 . . . 25 . 1 . . . . . . Thermal 141 | . 64 18 . 4 54 . . . . . . 1 . Explosive 19 | . . 1 . . 1 . . 2 . 9 . . 6 Electromagnetic 17 | . . . . . . 3 9 . . . . 5 . Robot Hit Streak 17 | . 17 6 . 7 15 . 1 . . . . 1 . Robot Miss Streak 10 | . 5 10 . 5 4 . 1 . . . . 2 3 Penetration Max 1 | . . . . . 1 . . . . . . . . Secondary Targets 1 | . . . . . 1 . . . . . . . . Max Gunslinging Chain 1 | . . . . . 1 . . . . . . . . Shots Hit Robots 515 | . 59 14 . 4 110 67 18 42 . 32 127 32 10 Core Hits 319 | . 37 20 . 4 87 31 21 13 . 28 42 17 19 Critical Kills . | . . . . . . . . . . . . . . Critical Parts Destroyed . | . . . . . . . . . . . . . . Critical Strikes 26 | . 3 . . . . 3 . 2 . 6 9 2 1 Burn 3 | . 3 . . . . . . . . . . . . Sever 23 | . . . . . . 3 . 2 . 6 9 2 1 Melee Attacks 564 | . . . . . 81 113 24 46 . 48 183 56 13 Impact 23 | . . . . . 1 . . . . . 9 13 . Slashing 541 | . . . . . 80 113 24 46 . 48 174 43 13 Piercing . | . . . . . . . . . . . . . . Sneak Attacks 52 | . . . . . 17 9 1 2 . . 21 2 . Combat Hostiles 1 | . . . . . . . . . . . . 1 . Follow-up Attacks 139 | . . . . . 17 23 4 10 . 21 52 9 3 Damage Inflicted 22904 | . 763 290 . 38 3694 3431 1373 2034 . 2054 6324 1623 1280 Guns 1949 | . 763 150 . 38 998 . . . . . . . . Cannons . | . . . . . . . . . . . . . . Explosions 3523 | . . 140 . . 140 223 772 123 . 941 . 319 865 Melee 17400 | . . . . . 2547 3208 601 1911 . 1103 6324 1291 415 Ramming 32 | . . . . . 9 . . . . 10 . 13 . Kinetic 560 | . 269 . . . 291 . . . . . . . . Thermal 1594 | . 494 150 . 38 707 . 189 . . . . 16 . Explosive 2209 | . . 140 . . 140 . . 123 . 941 . . 865 Electromagnetic 1109 | . . . . . . 223 583 . . . . 303 . Impact 319 | . . . . . . . . . . . 319 . . Slashing 17081 | . . . . . 2547 3208 601 1911 . 1103 6005 1291 415 Piercing . | . . . . . . . . . . . . . . Highest Corruption 9 | . 1 1 1 1 7 4 6 6 6 1 1 9 9 Average Corruption 4 | . 1 1 1 1 7 3 5 6 6 1 1 5 9 Corruption Purged . | . . . . . . . . . . . . . . Effects 140 | . . . 1 1 11 24 13 29 11 3 2 38 7 Message Errors 38 | . . . . 1 2 9 2 11 1 1 2 8 1 Matter Fused 38 | . . . . . 7 9 4 3 2 . . 11 2 Heat Flow Errors 15 | . . . . . 1 1 3 2 2 . . 6 . Energy Discharges 21 | . . . . . 1 4 1 5 3 . . 4 3 Parts Rejected 2 | . . . . . . . . 2 . . . . . Data Loss (minor) 22 | . . . 1 . . 1 2 3 3 2 . 9 1 Data Loss (major) 3 | . . . . . . . . 3 . . . . . Misfires 1 | . . . . . . . 1 . . . . . . Overload Shots 1 | . . . . . . . . . . . . 1 . Overflow Damage 3154 | . . 20 . . 723 655 159 242 . 99 1025 100 131 Projectiles . | . . . . . . . . . . . . . . Explosions 248 | . . 20 . . . 24 . . . 65 . 8 131 Melee 2906 | . . . . . 723 631 159 242 . 34 1025 92 . Knockbacks 3 | . . . . . . . . . . . 3 . . Impact 2 | . . . . . . . . . . . 2 . . Kinetic . | . . . . . . . . . . . . . . Secondary 1 | . . . . . . . . . . . 1 . . Self-Inflicted Damage 252 | . . 24 . . 4 17 67 13 . . . 24 103 Shots 12 | . . 1 . . . 1 6 1 . . . 1 2 Rammed 3 | . . . . . 1 . . . . 2 . . . Targets Rammed 4 | . . . . . 1 . . . . 2 . 1 . Kicked 1 | . . . . . . . . . . . . 1 . Crushed . | . . . . . . . . . . . . . . Highest Temperature 269 | . 230 81 . 150 181 167 251 269 173 23 8 267 20 Average Temperature 77 | . 76 32 . 76 51 57 99 128 75 8 5 113 8 Received Heat Transfer 2267 | . 267 . . . 153 283 171 104 . 327 418 275 269 Effects 3 | . 3 . . . . . . . . . . . . Energy Bleed 1 | . 1 . . . . . . . . . . . . Interference 2 | . 2 . . . . . . . . . . . . Siege Activations . | . . . . . . . . . . . . . . Robots Corrupted 1 | . . . . . . . 1 . . . . . . Combat Hostiles 1 | . . . . . . . 1 . . . . . . Parts Fried . | . . . . . . . . . . . . . . Impact Corruptions 3 | . . . . . . . . . . . 3 . . Robots Melted . | . . . . . . . . . . . . . . Combat Hostiles . | . . . . . . . . . . . . . . Parts Melted 6 | . 3 1 . . . . . . . . . 1 1 Heat Transferred 2897 | . 1447 190 . 50 910 . 250 . . . . 50 . Parts Sabotaged . | . . . . . . . . . . . . . . Parts Stolen . | . . . . . . . . . . . . . . Parts Stripped . | . . . . . . . . . . . . . . Power Chain Reactions 3 | . . . . . . . 2 . . . . 1 . Missiles Intercepted . | . . . . . . . . . . . . . . Alert | -11 -10 -10 -10 -9 -8 -7 -7 -7 -7 -6 -6 -6 -6 ------- Run | Scr Mat Min Exi Min Mat Fac Low Low Zio Pro Fac Ext Cet Peak Influence 1340 | . 331 295 . 5 457 1340 . . . . 578 568 286 Initial 284 | . . 70 . . 1 57 . . . . 69 229 284 Average 345 | . 146 210 . 1 266 564 . . . . 385 419 159 Maximum Alert Level 4 | . 1 1 . . 2 4 . . . . 2 2 1 Low Security (%) 28 | 100 62 53 . 100 32 18 . . . . 18 . 84 Level 1 31 | . 37 46 . . 53 23 . . . . 14 37 15 Level 2 33 | . . . . . 13 23 . . . . 67 62 . Level 3 3 | . . . . . . 19 . . . . . . . Level 4 2 | . . . . . . 15 . . . . . . . Level 5 . | . . . . . . . . . . . . . . High Security . | . . . . . . . . . . . . . . Max Security . | . . . . . . . . . . . . . . Squads Dispatched 30 | . 4 . . . 4 11 . . . 1 8 2 . Investigation 6 | . 2 . . . . 1 . . . . 2 1 . Extermination 5 | . . . . . . 2 . . . . 3 . . Reinforcement 13 | . 2 . . . 4 5 . . . . 1 1 . Assault 3 | . . . . . . 1 . . . 1 1 . . Garrison 3 | . . . . . . 2 . . . . 1 . . Intercept . | . . . . . . . . . . . . . . Construction Impeded 2 | . . . . . 1 . . . . . . 1 . Haulers Reinforced . | . . . . . . . . . . . . . . Cargo Convoy Interrupts 1 | . . . . . . 1 . . . . . . . Stealth | -11 -10 -10 -10 -9 -8 -7 -7 -7 -7 -6 -6 -6 -6 --------- Run | Scr Mat Min Exi Min Mat Fac Low Low Zio Pro Fac Ext Cet Distress Signals 10 | . 2 . . . 2 1 . . . . . 3 2 Communications Jammed . | . . . . . . . . . . . . . . Distress Signals . | . . . . . . . . . . . . . . Times Spotted 255 | . 30 9 . . 44 31 21 10 . 22 38 34 16 Peak Tracking Total 10 | . 7 3 . . 6 5 9 3 . 7 6 9 10 Tactical Retreats 30 | . 4 2 . . 1 3 7 . . 1 7 5 . Traps | -11 -10 -10 -10 -9 -8 -7 -7 -7 -7 -6 -6 -6 -6 ------- Run | Scr Mat Min Exi Min Mat Fac Low Low Zio Pro Fac Ext Cet Traps Triggered 20 | . 4 . . 2 . 6 . . . . 4 4 . Indirectly . | . . . . . . . . . . . . . . Trap Hack Attempts . | . . . . . . . . . . . . . . Triggered . | . . . . . . . . . . . . . . Disarmed . | . . . . . . . . . . . . . . Reprogrammed . | . . . . . . . . . . . . . . Reused . | . . . . . . . . . . . . . . Traps Extracted . | . . . . . . . . . . . . . . Installed . | . . . . . . . . . . . . . . Triggered 1 | . . . . . . 1 . . . . . . . Machines | -11 -10 -10 -10 -9 -8 -7 -7 -7 -7 -6 -6 -6 -6 ---------- Run | Scr Mat Min Exi Min Mat Fac Low Low Zio Pro Fac Ext Cet Machines Disabled 4 | . . . . . . 1 . . . . . 3 . Max in Single Turn 1 | . . . . . . . . . . . . 1 . Garrison Access 1 | . . . . . . 1 . . . . . . . Energy Cycler 1 | . . . . . . . . . . . . 1 . Machines Sabotaged . | . . . . . . . . . . . . . . Garrisons Compromised 1 | . . . . . . 1 . . . . . . . Overloaded Fab Kills . | . . . . . . . . . . . . . . Fab Network Shutdowns 2 | . . . . . . 1 . . . . 1 . . Hacking | -11 -10 -10 -10 -9 -8 -7 -7 -7 -7 -6 -6 -6 -6 --------- Run | Scr Mat Min Exi Min Mat Fac Low Low Zio Pro Fac Ext Cet Machines Accessed 36 | . 7 1 1 1 8 7 . . 1 . 6 4 . Terminals 21 | . 6 1 . . 6 3 . . . . 1 4 . Fabricators 5 | . . . . . . 3 . . . . 2 . . Repair Stations 1 | . . . . . 1 . . . . . . . . Recycling Units 3 | . 1 . . . . . . . . . 2 . . Scanalyzers 1 | . . . . . 1 . . . . . . . . Garrison Access 2 | . . . . . . 1 . . . . 1 . . Total Hacks 83 | . 17 4 1 1 22 17 . . 4 . 12 5 . Successful 46 | . 7 . 1 1 15 9 . . 4 . 6 3 . Failed 37 | . 10 4 . . 7 8 . . . . 6 2 . Catastrophic 5 | . . . . . 1 2 . . . . 2 . . Database Lockouts . | . . . . . . . . . . . . . . Manual 38 | . 12 4 . . 11 5 . . 1 . 5 . . Terminals 50 | . 16 4 . . 16 8 . . . . 1 5 . Fabricators 13 | . . . . . . 8 . . . . 5 . . Repair Stations 4 | . . . . . 4 . . . . . . . . Recycling Units 5 | . 1 . . . . . . . . . 4 . . Scanalyzers 2 | . . . . . 2 . . . . . . . . Garrison Access 3 | . . . . . . 1 . . . . 2 . . Terminal Hacks 23 | . 5 . 1 1 7 2 . . 4 . . 3 . Record 1 | . . . 1 . . . . . . . . . . Part Schematic 4 | . . . . . . . . . 4 . . . . Robot Analysis 3 | . 2 . . . 1 . . . . . . . . Prototype ID Bank 3 | . 1 . . . 2 . . . . . . . . Open Door 4 | . . . . 1 . . . . . . . 3 . Terminal Index 1 | . 1 . . . . . . . . . . . . Alert Level 1 | . . . . . 1 . . . . . . . . Unreport Threat 2 | . . . . . 2 . . . . . . . . Locate Traps 4 | . 1 . . . 1 2 . . . . . . . Fabricator Hacks 7 | . . . . . . 5 . . . . 2 . . Load Schematic 2 | . . . . . . 1 . . . . 1 . . Build 5 | . . . . . . 4 . . . . 1 . . Repair Station Hacks 4 | . . . . . 4 . . . . . . . . Scan Component 2 | . . . . . 2 . . . . . . . . Repair 2 | . . . . . 2 . . . . . . . . Recycling Unit Hacks . | . . . . . . . . . . . . . . Scanalyzer 2 | . . . . . 2 . . . . . . . . Insert Component 1 | . . . . . 1 . . . . . . . . Analyze 1 | . . . . . 1 . . . . . . . . Garrison Access Hacks . | . . . . . . . . . . . . . . Unauthorized Hacks 10 | . 2 . . . 2 2 . . . . 4 . . Terminals 4 | . 1 . . . 2 1 . . . . . . . Track 1 | . . . . . 1 . . . . . . . . Botnet 3 | . 1 . . . 1 1 . . . . . . . Fabricators . | . . . . . . . . . . . . . . Repair Stations . | . . . . . . . . . . . . . . Recycling Units 5 | . 1 . . . . . . . . . 4 . . Reject 2 | . . . . . . . . . . . 2 . . Mask 2 | . . . . . . . . . . . 2 . . Tunnel 1 | . 1 . . . . . . . . . . . . Scanalyzers . | . . . . . . . . . . . . . . Garrison Access 1 | . . . . . . 1 . . . . . . . Jam 1 | . . . . . . 1 . . . . . . . Data Cores Recovered . | . . . . . . . . . . . . . . Used . | . . . . . . . . . . . . . . Hacking Detections 28 | . 6 1 . . 8 5 . . . . 6 2 . Full Trace Events 3 | . . 1 . . . . . . . . 2 . . Feedback Events . | . . . . . . . . . . . . . . Feedback Blocked . | . . . . . . . . . . . . . . Robot Schematics Acquired . | . . . . . . . . . . . . . . Robots Built 6 | . . . . . . 6 . . . . . . . Matter 372 | . . . . . . 372 . . . . . . . Time 98 | . . . . . . 98 . . . . . . . Total Robot Build Rating 12 | . . . . . . 12 . . . . . . . Part Schematics Acquired 5 | . . . . . 1 . . . 4 . . . . Parts Built 2 | . . . . . . 1 . . . . 1 . . Matter 292 | . . . . . . 168 . . . . 124 . . Time 115 | . . . . . . 84 . . . . 31 . . Total Part Build Rating 6 | . . . . . . 4 . . . . 2 . . Parts Repaired 2 | . . . . . 2 . . . . . . . . Time 32 | . . . . . 32 . . . . . . . . Parts Recycled . | . . . . . . . . . . . . . . Recycled Matter . | . . . . . . . . . . . . . . Retrieved Matter . | . . . . . . . . . . . . . . Retrieved Components . | . . . . . . . . . . . . . . Parts Scanalyzed 1 | . . . . . 1 . . . . . . . . Part Schematics Acquired 1 | . . . . . 1 . . . . . . . . Parts Damaged . | . . . . . . . . . . . . . . Bothacking | -11 -10 -10 -10 -9 -8 -7 -7 -7 -7 -6 -6 -6 -6 ------------ Run | Scr Mat Min Exi Min Mat Fac Low Low Zio Pro Fac Ext Cet Used RIF Installer . | . . . . . . . . . . . . . . Robots Hacked . | . . . . . . . . . . . . . . Non-combat . | . . . . . . . . . . . . . . Combat . | . . . . . . . . . . . . . . Robot Hacks Applied . | . . . . . . . . . . . . . . Relay Couplers Released . | . . . . . . . . . . . . . . Robots Rewired 20 | . . . . . . . 2 . . 1 . 17 . Allies Hacked 2 | . . . . . . . . . . 2 . . . Hacks Repelled . | . . . . . . . . . . . . . . Allies | -11 -10 -10 -10 -9 -8 -7 -7 -7 -7 -6 -6 -6 -6 -------- Run | Scr Mat Min Exi Min Mat Fac Low Low Zio Pro Fac Ext Cet Total Allies 58 | . . . . 2 . 24 2 . 3 1 . 26 . Largest Group 15 | . . . . 2 1 15 2 2 3 3 . 14 14 Highest-Rated Group 597 | . . . . 45 31 597 52 52 87 87 . 389 389 Highest-Rated Ally 156 | . . . . 31 31 74 32 32 31 31 . 156 37 Total Orders 3 | . . . . . . . . . . . . 3 . EXPLORE 1 | . . . . . . . . . . . . 1 . RETURN 2 | . . . . . . . . . . . . 2 . Ally Attacks 237 | . . . . . 7 37 . 12 . 19 . 131 31 Total Damage 7017 | . . . . . 109 1105 . 361 . 387 . 4414 641 Kills 36 | . . . . . . 7 . 4 . 2 . 21 2 Allies Corrupted . | . . . . . . . . . . . . . . Allies Melted 1 | . . . . . . . . . . 1 . . . Intel | -11 -10 -10 -10 -9 -8 -7 -7 -7 -7 -6 -6 -6 -6 ------- Run | Scr Mat Min Exi Min Mat Fac Low Low Zio Pro Fac Ext Cet Robot Analysis Total 3 | . 2 . . . 1 . . . . . . . . Derelict Logs Recovered 7 | . . 1 . 1 . . 1 . 2 2 . . . Drone Launches 3 | . . . . . . . . . . . . 3 . Drone Recoveries 3 | . . . . . . . . . . . . 3 . Exploration | -11 -10 -10 -10 -9 -8 -7 -7 -7 -7 -6 -6 -6 -6 ------------- Run | Scr Mat Min Exi Min Mat Fac Low Low Zio Pro Fac Ext Cet Turns Passed 14570 | 59 894 419 272 325 1925 1618 718 1190 2162 716 2220 1753 299 Spaces Moved 7629 | 49 575 318 237 237 1198 1040 347 495 854 371 1140 651 117 Core 4 | 4 . . . . . . . . . . . . . Treads 1461 | . . . . . . . 31 273 854 259 44 . . Legs 1270 | . . . . . . . . . . . 502 651 117 Wheels 4894 | 45 575 318 237 237 1198 1040 316 222 . 112 594 . . Hover . | . . . . . . . . . . . . . . Flight . | . . . . . . . . . . . . . . Fastest Speed 50 | 50 100 115 115 115 105 125 110 160 252 155 115 120 120 Average Speed 154 | 95 116 118 115 123 118 125 150 210 252 157 141 192 189 Slowest Speed 280 | 100 130 125 115 130 130 125 260 263 252 252 270 200 280 Overloaded Moves . | . . . . . . . . . . . . . . Propulsion Burnouts . | . . . . . . . . . . . . . . Robots Hopped . | . . . . . . . . . . . . . . Cave-ins Triggered 1 | . . . . . 1 . . . . . . . . Exploration Rate (%) 55 | 4 96 72 61 34 68 26 49 70 85 57 23 69 57 Regions Visited 13 Branch Regions 9 Pre-discovered Areas 4 | . 1 1 1 . . . . . 1 . . . . Known Exits Taken 7 | . . . . . . 1 1 1 1 1 1 1 . Unknown Exits Taken 6 | 1 1 1 1 1 1 . . . . . . . . Scrap Searched 10 | . . 2 . . . . 1 2 2 3 . . . Spaces Dug 105 | . . 8 . . 16 12 3 . . 43 11 1 11 Terrain Destroyed 299 | . . 8 . . 27 12 12 21 . 114 11 1 93 Melee 42 | . . . . . 16 12 2 . . . 11 1 . Projectile 1 | . . . . . . . 1 . . . . . . AOE 256 | . . 8 . . 11 . 9 21 . 114 . . 93 Terrain Rammed . | . . . . . . . . . . . . . . Walls Destroyed . | . . . . . . . . . . . . . . Machines Disabled . | . . . . . . . . . . . . . . Actions | -11 -10 -10 -10 -9 -8 -7 -7 -7 -7 -6 -6 -6 -6 --------- Run | Scr Mat Min Exi Min Mat Fac Low Low Zio Pro Fac Ext Cet Total 9609 | 58 712 342 236 267 1578 1275 501 574 864 436 1522 1071 173 Wait 606 | . 35 8 . 19 162 92 46 17 5 12 123 66 21 Move 7616 | 48 574 317 236 236 1197 1039 346 494 853 370 1139 650 117 Hop . | . . . . . . . . . . . . . . Pick Up 136 | 4 21 1 . 3 34 16 3 9 4 6 26 9 . Fast Attach 94 | 6 7 1 . 3 18 4 3 2 . . 35 13 2 Attach 76 | . 2 1 . . 5 6 8 11 . 5 20 8 10 Detach 38 | . 3 . . . 3 . 2 . . . 17 9 4 Swap 107 | . 5 2 . . 32 8 11 4 2 3 13 24 3 Drop 156 | . 18 2 . 4 51 19 . 1 . 1 35 24 1 Fire 123 | . 47 10 . 2 29 3 9 2 . 9 . 6 6 Melee 355 | . . . . . 46 67 15 34 . 26 114 44 9 Ram 1 | . . . . . 1 . . . . . . . . Kick 1 | . . . . . . . . . . . . 1 . Crush 2 | . . . . . . . . . . 2 . . . Escape Stasis 43 | . . . . . . 21 . . . . . 22 . Rewire 255 | . . . . . . . 58 . . 2 . 195 . Trap . | . . . . . . . . . . . . . . Miscellaneous . | . . . . . . . . . . . . . . Route ------- -11/Scrapyard -10/Materials (discovered 4 exits: [*Mat x3] / *Min) -10/Mines (discovered 2 exits: [*Mat] / *Exi) -10/Exiles -9/Mines -8/Materials -7/Factory (discovered 2 exits: *Sto / *Low) -7/Lower Caves -7/Lower Caves -7/Zion (discovered 2 exits: Dee / *Pro) -6/Proximity Caves -6/Factory (discovered 3 exits: *Low x2 / *Ext) -6/Extension (discovered 3 exits: [*Fac x2] / *Cet) -6/Cetus (discovered 1 exit: [*Arc]) History --------- Turn | Location | Event 9 | -11/Scrapyard | Discovered new exit (range 15) 60 | -11/Scrapyard | Entered Materials 312 | -10/Materials | Build established: Mutant 321 | -10/Materials | Discovered new exit (range 12) 611 | -10/Materials | Discovered new exit (range 11) 830 | -10/Materials | Discovered new exit (range 16) 901 | -10/Materials | Discovered new exit (range 15) 954 | -10/Materials | Entered Mines 963 | -10/Mines | Core integrity fell below 50% 1273 | -10/Mines | Deemed a non-threat by the Exiles lab entrance 1273 | -10/Mines | Discovered new exit (range 5) 1310 | -10/Mines | Discovered new exit (range 10) 1373 | -10/Mines | Entered Exiles 1402 | -10/Exiles | Met 8R-AWN 1421 | -10/Exiles | Met EX-HEX 1464 | -10/Exiles | Met EX-BIN 1486 | -10/Exiles | Met EX-DEC 1492 | -10/Exiles | Learned location of Zion (-7) 1632 | -10/Exiles | Discovered new exit (range 12) 1645 | -10/Exiles | Entered Mines 1666 | -9/Mines | Learned Materials trap positions 1744 | -9/Mines | Discovered new exit (range 7) 1757 | -9/Mines | Met a Derelict who couldn't figure out how to use a Trap Extractor 1898 | -9/Mines | Assembled infested the area 1903 | -9/Mines | Assisted by a Guerilla fighting off Assembled 1970 | -9/Mines | Entered Materials 1970 | -8/Materials | Accompanied by 1 ally 1970 | -8/Materials | Evolved 4 slots: Propulsion x1, Utility x2, Weapon x1 1971 | -8/Materials | Loaded intel: 17 trap records 1975 | -8/Materials | Led the pair of lost Derelicts to an unsafe place 2229 | -8/Materials | Discovered new exit (range 16) 2424 | -8/Materials | Build established: Gunner 2969 | -8/Materials | Build established: Scavenger-Mutant 3148 | -8/Materials | Repaired Axe 3163 | -8/Materials | Repaired Lgt. Treads 3320 | -8/Materials | Build established: Mutant 3584 | -8/Materials | Crushed by falling debris 3895 | -8/Materials | Entered Factory 3895 | -7/Factory | Evolved 2 slots: Utility x2 4018 | -7/Factory | Found Prototype Launcher 4018 | -7/Factory | Identified Rocket Array 4022 | -7/Factory | Fabricated Imp. Medium Armor Plating? 4032 | -7/Factory | Fabricated B-36 Bruiser (x3) 4096 | -7/Factory | Fabricated B-36 Bruiser (x3) 4197 | -7/Factory | Local fabrication network quarantined 4223 | -7/Factory | Discovered new exit (range 15) 4323 | -7/Factory | Identified exit to Storage 4670 | -7/Factory | Cargo convoy interrupted 5106 | -7/Factory | Garrison activated, responded to threat 5172 | -7/Factory | Destroyed 7 combat bots 5393 | -7/Factory | Discovered new exit (range 12) 5478 | -7/Factory | Identified exit to Lower Caves 5495 | -7/Factory | First assault squad dispatched 5513 | -7/Factory | Entered Lower Caves 5623 | -7/Lower Caves | Learned 8 Factory zone layouts 5634 | -7/Lower Caves | Encountered a Warlord checkpoint 5737 | -7/Lower Caves | Attracted the attention of an 0b10 outpost 5810 | -7/Lower Caves | Lost 7 parts (1p3n2u1w) 6041 | -7/Lower Caves | Build established: Scavenger-Mutant 6200 | -7/Lower Caves | Discovered new exit (range 5) 6210 | -7/Lower Caves | Identified exit to Lower Caves 6231 | -7/Lower Caves | Entered another Lower Caves area 6231 | -7/Lower Caves | Accompanied by 2 allies 6520 | -7/Lower Caves | Attracted the attention of an 0b10 checkpoint 6597 | -7/Lower Caves | Spotted B-75 Beast 6663 | -7/Lower Caves | Core integrity fell below 50% 6708 | -7/Lower Caves | Lost 6 parts (4n1u1w) 6715 | -7/Lower Caves | Destroyed B-75 Beast 6945 | -7/Lower Caves | Build established: Mutant 7332 | -7/Lower Caves | Discovered new exit (range 5) 7418 | -7/Lower Caves | Identified exit to Zion 7421 | -7/Lower Caves | Entered Zion 7502 | -7/Zion | Gained Derelict followers 7684 | -7/Zion | Given the Hacking Drone Bay 7684 | -7/Zion | Found Prototype Device 7687 | -7/Zion | Discovered new exit (range 10) 7702 | -7/Zion | Identified Hacking Drone Bay 7800 | -7/Zion | System corruption cleaned by Quarantine Array 7992 | -7/Zion | Learned location of Recycling (-7) 8174 | -7/Zion | Received a visual enhancement algorithm 8312 | -7/Zion | Identified exit to Deep Caves 8810 | -7/Zion | Learned Factory non-interactive machine intel 9117 | -7/Zion | Given A8's code to call for help 9581 | -7/Zion | Identified exit to Proximity Caves 9583 | -7/Zion | Entered Proximity Caves 9583 | -6/Proximity Caves | Accompanied by 3 allies 9696 | -6/Proximity Caves | Attracted the attention of an 0b10 outpost 9841 | -6/Proximity Caves | Core integrity fell below 20% 9875 | -6/Proximity Caves | Lost 4 parts (1n3u) 10133 | -6/Proximity Caves | Learned Factory security intel 10224 | -6/Proximity Caves | Learned location of 1 exit from Factory 10230 | -6/Proximity Caves | Build established: Scavenger-Mutant 10282 | -6/Proximity Caves | Discovered new exit (range 12) 10298 | -6/Proximity Caves | Identified exit to Factory 10299 | -6/Proximity Caves | Entered Factory 10299 | -6/Factory | Evolved 2 slots: Propulsion x1, Utility x1 10300 | -6/Factory | Identified exit to Lower Caves 10303 | -6/Factory | Loaded intel: 212 non-interactive machine locations 10449 | -6/Factory | Fabricated Med. Armor Plating (x1) 10687 | -6/Factory | Lost 5 parts (2n2u1w) 10706 | -6/Factory | Local fabrication network quarantined 11022 | -6/Factory | Lost 3 parts (1n1u1w) 11329 | -6/Factory | Garrison activated, responded to threat 11450 | -6/Factory | Lost 6 parts (1p4n1u) 12145 | -6/Factory | Discovered new exit (range 15) 12399 | -6/Factory | First assault squad dispatched 12517 | -6/Factory | Identified exit to Extension 12519 | -6/Factory | Entered Extension 12612 | -6/Extension | Rescued a captive Derelict 12613 | -6/Extension | Rescued a captive Derelict 12685 | -6/Extension | Rescued a captive Derelict 12685 | -6/Extension | Rescued a captive Derelict 12756 | -6/Extension | Rescued A7 13130 | -6/Extension | Rescued a captive Derelict 13131 | -6/Extension | Rescued a captive Derelict 13133 | -6/Extension | Energy Cycler disabled 13133 | -6/Extension | Rescued a captive Derelict 13133 | -6/Extension | Rescued a captive Derelict 13133 | -6/Extension | Rescued a captive Derelict 13133 | -6/Extension | Rescued a captive Derelict 13134 | -6/Extension | Rescued a captive Derelict 13141 | -6/Extension | Rescued a captive Derelict 13146 | -6/Extension | Rescued a captive Derelict 13152 | -6/Extension | Rescued a captive Derelict 13156 | -6/Extension | Rescued a captive Derelict 13258 | -6/Extension | Spotted B-75 Beast 13280 | -6/Extension | Spotted B-75 Beast 13286 | -6/Extension | Core integrity fell below 50% 13301 | -6/Extension | Allies destroyed B-75 Beast 13334 | -6/Extension | Extracted ID and sensor layout for unrecognized location from A7's data core 13341 | -6/Extension | Discovered new exit (range 14) 13350 | -6/Extension | Lost 8 parts (1p2n3u2w) 14201 | -6/Extension | Build established: Commander-Mutant 14226 | -6/Extension | Discovered new exit (range 10) 14238 | -6/Extension | Discovered new exit (range 6) 14270 | -6/Extension | Identified exit to Cetus 14272 | -6/Extension | Entered Cetus 14272 | -6/Cetus | Accompanied by 14 allies 14297 | -6/Cetus | Spotted Cetus Guard 14298 | -6/Cetus | Spotted Cetus Guard 14298 | -6/Cetus | Spotted Cetus Guard 14300 | -6/Cetus | Spotted Cetus Guard 14306 | -6/Cetus | Allies destroyed Cetus Guard 14326 | -6/Cetus | Destroyed Cetus Guard 14327 | -6/Cetus | Allies destroyed Cetus Guard 14336 | -6/Cetus | Destroyed Cetus Guard 14441 | -6/Cetus | Discovered new exit (range 16) 14479 | -6/Cetus | Spotted Cetus Guard 14480 | -6/Cetus | Spotted Cetus Guard 14521 | -6/Cetus | Lost 3 parts (2u1w) 14538 | -6/Cetus | Spotted Cetus Guard 14541 | -6/Cetus | Spotted Cetus Guard 14543 | -6/Cetus | Destroyed Cetus Guard 14568 | -6/Cetus | Core integrity fell below 20% 14571 | -6/Cetus | Destroyed by G-50 Soldier with Heavy Laser Last Messages --------------- 14560_ G-50 Soldier unfolds itself. 14561_ Carbon-fiber Leg destroyed. 14562_ Penetrated by Slug. 14562_ Destroyed Unknown Power Core. 14562_ Phasing Sabre destroyed. 14562_ Destroyed Phasing Sabre. 14564_ Penetrated by Slug. 14565_ Slug penetrates S-27 Virus. 14565_ S-27 Virus destroyed. 14567_ Penetrated by Slug. 14567_ Destroyed Unknown Power Core. 14567_ S-27 Virus destroyed. 14567_ Imp. Medium Armor Plating destroyed. 14568_ Centrium Medium Armor Plating destroyed. 14568_ Hvy. Missile Launcher destroyed. 14568_ Penetrated by Slug. 14570_ Carbon-fiber Leg destroyed. 14570_ Penetrated by Slug. 14571_ Carbon-fiber Leg destroyed. 14571_ Penetrated by Slug. Map ----- +----------------------------------------------------+ | ??????????????????????## ???????????? | | ???????????????????????# " #???????????? | | ???????????????????????## " # #???????????? | | ???????????????????????## #???????????? | | ???????????????????????## ##???????????? | | ????????????????????????# ##???????????? | | ????????????????????????? ###???????????? | | ????????????????????????? ##???????????? | | ?????????????????????????#" ##???????????? | | ?????????????????????????## ##???????????? | | ?????????????????????????#" ###???????????? | | ?????????????????????????## | ##????????????? | | ?????????????????????????## "#????????????? | | ?????????????????????????## "##????????????? | | ?????????????????????????## %##????????????? | | ???????####??????????????## ##????????????? | | "" "???"###??????????????## ##????????????? | | """" ?? #""""""##????????## ##????????????? | | """"""""#"#######????????## ##????????????? | | "" """""#""""""##????????## ##????????????? | | """""""#" ""##????????## ##????????????? | | " """#T ""##?????##### ! #????????????? | | """ "#" ""######## # !%=########??????? | | ####### Y %= #######?###??? | | % ;g l Y%* ##??? | | g/ @Y < ##??? | | g; [ s% ##??? | | ###### ###########??? | | """"""""#T ####### ###########??? | | ############"""##????# #????????????? | | ""# ? ????###########????????????? | | ???????????????????????????????????????????? | | ??????????????????????????????????????????? | | """????????????????????????????????????????? | | "##????????????????????????????????????????? | | """"????????????????????????????????????????? | | T"??????????????????????????????????????????? | | ""??????????????????????????????????????????? | | ???????????????????????????????????????????? | | "???????????????????????????????????????????? | | T???????????????????????????????????????????? | | ????????????????????????????????????????????? | | ????????????????????????????????????????????? | | ????????????????????????????????????????????? | | ????????????????????????????????????????????? | | ????????????????????????????????????????????? | | ????????????????????????????????????????????? | | ????????????????????????????????????????????? | | ????????????????????????????????????????????? | | ????????????????????????????????????????????? | +----------------------------------------------------+ Best States ------------- Heat Dissipation 112 Energy Generation 23 Energy Capacity 490 Matter Stores 300 Matter Capacity 300 Sight Range 16 Robot Scan Range 15 Terrain Scan Range 16 Terrain Scan Density 110 Cloak Strength 3 Armor Coverage 675 Resistance: KI 20 Resistance: TH 20 Resistance: EM 25 Core Shielding 20 Melee Speed Boost 20 Evasion (%) 58 Targeting Accuracy 5 Melee Accuracy 10 Recoil Reduction 4 Defensive Hacking 10 Item Schematics ----------------- Med. Armor Plating | -8/Materials | Scanalyzed Riot Gun | -7/Zion | Free Battle Rifle | -7/Zion | Free Barrage Gun | -7/Zion | Free Enh. Flamer | -7/Zion | Free Robot Schematics ------------------ None Fabricated ------------ Imp. Medium Armor Plating | x1 | -7/Factory | Preloaded B-36 Bruiser | x3 | -7/Factory | Preloaded B-36 Bruiser | x3 | -7/Factory | Preloaded Med. Armor Plating | x1 | -6/Factory Alien Tech Used ----------------- None Achievements -------------- None Challenges ------------ None Game ------ Seed DisruptionBattleExoskeleton Manual? 0 Play Time 02:34:23 Cumulative 274.6 hours Start 2021.07.02 @ 23:17:52 End 2021.07.03 @ 02:37:10 Sessions 3 Manual Loads 0 Difficulty Rogue Special Mode None Game No. 133 Rogue 133 Adventurer 0 Explorer 0 Win Type - Total 6 Types 4/0/2/0/0/0/0/0/0 Lore% 79 Gallery% 87 Achievement% 73 Wizard Run 0 Options --------- ASCII 0 Keyboard 1 Movement Numpad Keybinds 0 Fullscreen 2 Font 12/Terminus Map View 83x54 Tactical HUD 1 Map Filters NONE Filters NONE Steam X RUN: 3d71ba29-a826-4a7d-9249-cc91f2f2ee9b